Workbook

Sheet Cover
C3: Ministry of Forests, Lands, Natural Resource Operations & Rural Development, Timber Pricing Branch
C4: 2021 Coastal Crown Low Volume, Community Forest & Woodlot Tenure Management Cost Survey Instructions & Template
C6: Cost and Volume Data For Fiscal Year Ending December 31, 2020 (or best fit for cost base 2020)
C8: Survey Reporting Period; January 1, to December 31, of the Reporting Year. Report each of 2017, 2018, 2019 and 2020 on separate worktabs within the workbook.
C13: Licensee: | K13: Licensee contact:
C15: Reporting Period | E15: From: | G15: To: | K15: Contact Email:
C16: ( Month / Year )
K17: Contact Tel #:
C18: Licences:
C20: Data Certifier (Name) | K20: Signature:
C21: CPA (British Columbia licensed Compilations, Review or Assurance professional)
C23: Data Certifier (Name) | K23: Signature:
C24: Qualified BC RPF or RFP
C27: Note: This workbook / schedule is considered confidential once populated with data

Sheet Introduction
A2: Introduction To The Coast Crown Tenure Management Woodlot, Community Forest & Low Volume Cost Survey
A4: The Coast Crown Tenure Management Woodlot, Community Forest & Low Volume Cost Survey forms an integral part of the set of surveys, that provide the data support for the Coast Appraisal Manual and other economic analyses of the ministry. Although this cost surveys is a stand alone survey, all manners, times and matters including detailed data definitions are directed by the instructions to the primary, main, long form, comprehensive 2021 Coast Crown Tenure Management Cost Survey instructions and must be consulted on all matters if required. For a general overview of the of the surveys, please read the the introductory pages of the primary. main cost survey instructions at:
A5: https://www2.gov.bc.ca/gov/content/industry/forestry/competitive-forest-industry/timber-pricing/coast-timber-pricing/coast-crown-tenure-mgmt-cost-survey
A6: For specific definitions for Total Delivered Log Cost (TDLC) short form, refer to the definitions found within the blue tabs of this survey work book. For all other schedules refer to the main 2021cost survey instructions. Duplicate the 2021 workbook tabs to data enter years 2017 and 2020 inclusive. For cost survey preparation support/company specific training, please email the program email box at: FORCLCS@Victoria1.gov.bc.ca
A7: Data Protection Standard of the Province of British Columbia, please refer to Section 6 of the main survey instructions. | C7: Survey Reporting Period; January 1, to December 31, of the Reporting Year. Report each of 2017, 2018, 2019 and 2020 on separate worktabs within the workbook.
A9: Submission: The deadline is 4pm PST on June 30, 2021 to email: FORCLCS@Victoria1.gov.bc.ca. Community Forest Association members who have not received a data request for the survey in the past 10 years and who are not addressed to participate under the letter "Main Survey" for 2021 may submit by December 31, 2021.
A11: Copyright Province of British Columbia April 2021

Sheet Index
A1: 2021 Coast Crown Tenure Management Cost Survey Templates (cost base 2020)
A2: Ministry of Forests, Lands & Natural Resource Operations & Rural Development, Timber Pricing Branch
B4: Index of Schedules
B6: Schedule Number | D6: Name of Schedule | E6: Report Category | F6: Location of Definitions
B7: Schedule | C7: A.1/A.2 | D7: Direct Logging Costs: Client Crew Teams, Single (A.1) & Multi Phase Contractors (A.2) | E7: Total Delivered Log Cost | F7: Definitions Within This WorkBook & Further Detail Within Main Survey
B8: Schedule | C8: A.3 | D8: Indirect Logging Costs | E8: Total Delivered Log Cost | F8: Definitions Within This WorkBook & Further Detail Within Main Survey
B9: Schedule | C9: A.4 | D9: Total Delivered Log Cost (TDLC) & Stumpage, Rents & Fees Detail | E9: Total Delivered Log Cost | F9: Definitions Within This WorkBook & Further Detail Within Main Survey
B10: Schedule | C10: B.1 | D10: Road Management (RM) | E10: Tenure Obligation Adjustment | F10: Detailed Definitions Within Main Survey Instructions
B11: Schedule | C11: B.2 | D11: Engineering & Forestry (F&E) | E11: Tenure Obligation Adjustment | F11: Detailed Definitions Within Main Survey Instructions
B12: Schedule | C12: B.3 | D12: Corporate General & Administration (G&A) | E12: Tenure Obligation Adjustment | F12: Detailed Definitions Within Main Survey Instructions
B13: Schedule | C13: B.4 | D13: Silviculture Expenses & Reforestation Liability (SRL) | E13: Tenure Obligation Adjustment | F13: Detailed Definitions Within Main Survey Instructions
B14: Schedule | C14: B.5 | D14: Road Survey (RS) | E14: Tenure Obligation Adjustment | F14: Detailed Definitions Within Main Survey Instructions
B15: Schedule | C15: B.6 | D15: Bridges (BS) | E15: Tenure Obligation Adjustment | F15: Detailed Definitions Within Main Survey Instructions
B16: Schedule | C16: B.7 | D16: Wood Culverts (WC) | E16: Tenure Obligation Adjustment | F16: Detailed Definitions Within Main Survey Instructions
B17: Schedule | C17: B.8 | D17: Off Highway Logging Truck & Lowbeds (OHLTL) | E17: Tenure Obligation Adjustment | F17: Detailed Definitions Within Main Survey Instructions
B18: Schedule | C18: B.9 | D18: Inland Water Transportation (IW) (Grouped into a single workbook tab) | E18: Specified Operation | F18: Detailed Definitions Within Main Survey Instructions
B19: Schedule | C19: B.10 | D19: Barging or Towing to Final Destination (B&T) | E19: Specified Operation | F19: Detailed Definitions Within Main Survey Instructions
B20: Schedule | C20: B.11 | D20: Helicopter Single Standing Stem Selection (HSSSS) (Grouped into a single workbook tab) | E20: Specified Operation | F20: Detailed Definitions Within Main Survey Instructions
B21: Schedule | C21: B.12 | D21: Skyline (SL) (Grouped into a single workbook tab) | E21: Specified Operation | F21: Detailed Definitions Within Main Survey Instructions
B22: Schedule | C22: B.13 | D22: Tree Crown Modification (TCM) (Grouped into a single workbook tab) | E22: Specified Operation | F22: Detailed Definitions Within Main Survey Instructions
B23: Schedule | C23: B.14 | D23: Destumping For Root Disease Control with BEC (DRDC & BEC) | E23: Specified Operation | F23: Detailed Definitions Within Main Survey Instructions
B25: Note: The workbook tabs are not formatted for printing.
B26: Some calculations auto-populate, but please confirm all extensions of calculations.
B27: All values are to brought-forward with no duplication of values between the B Schedules.
B28: Please retain a copy of the completed template for the business data retention period with supporting documentation.
B29: This template is deemed confidential under Section 136 of the Forest Act once populated with data.

Sheet Definitions-TDLC
A1: 2021 Coast Crown Tenure Management Low Volume & Woodlot Cost Survey Instructions
A2: Definitions For Total Delivered Log Costs (TDLC)
A4: Category | C4: Quick Reference Definition | D4: Information / Tip Word For Document Search
A5: Survey(s) | B5: Comprehensive Survey | C5: 2021 Coast Crown Tenure Management Cost Survey (CCTMCS) Instructions & Template. Refer to the link on the right. Provides full detailed guidance for any category or term. | D5: https://www2.gov.bc.ca/gov/content/industry/forestry/competitive-forest-industry/timber-pricing/coast-timber-pricing/coast-crown-tenure-mgmt-cost-survey For additional information or detailed definitions refer to the comprehensive survey instructions; see above link. The tips to each category refer to sections or page numbers within these instructions
B6: Low Volume Survey | C6: 2021 Coast Crown Tenure Management Low Volume (LV) Cost Survey (cost base 2020). Refer to these instructions below on this workbook tab and populate this template. Forest tenure holders with tenures that do not have the tenure obligations of forest planning and administration, road development, road maintenance and silviculture, and that are not BCTS licences, are not required to participate in the 2021 Coast Crown Tenure Management Cost Survey.
B7: Woodlot Survey | C7: 2021 Coast Crown Tenure Management Woodlot (WL) Cost Survey (cost base 2020). Refer to these instructions below on this workbook tab and populate this template.
A8: Cover | B8: Reporting Period | C8: Survey Reporting Period; January 1, to December 31, of the Reporting Year. Report each of 2017, 2018, 2019 and 2020 on separate worktabs within the workbook. | D8: Or closest fit when the fiscal year end is not December 31, 2020
B9: Licenses | C9: List the licenses that are being reported on. | D9: If reporting for partners list these licenses as well if reported
B10: Licensee Contact | C10: Provide the contact name, contact email address and telephone number for the survey. | D10: Note the partners of any partnership or joint venture
B11: Certification | C11: Certification must be made by a Chartered Professional Accountant (CPA) and a Registered Forest Professional(RFP) | D11: Where a CPA or RFP are not available, signature is to be from a Company Officer
A12: Survey Procedures | B12: Survey Procedure | C12: Populate the data cells of the green tabs of the workbook labelled 2020TDLC, 2020Spec.Ops & Barge Tow in accordance with the definitions noted within this workbook or the more detailed definitions noted within the instruction to the main 2021 Coast Crown Tenure survey. | D12: Duplicate the 2020TDLC and 2020Spec.Ops for the data years 2017, 2018. The Barge and Tow tab will take all years of data.
B13: Submission | C13: Submit populated template(s) / workbook by 4pm PST, June 30, 2021 to: | D13: FORCLCS@Victoria1.gov.bc.ca
A15: Areas | B15: Districts | C15: DCR: Campbell River Natural Resource District; DC: Chilliwack Natural Resource District; DKM: Coast Mountain Natural Resource District; DNI: North Island - Central Coast Natural Resource District; DHG: Haida Gwaii Natural Resource District; DSI: South Island Natural Resource District; DSQ: Sunshine Coast Natural Resource District | D15: Eco-System Based Management EBM
B16: Ecosystem Based Management EBM | C16: Some districts are split between EBM and Non-EBM areas. Please refer to the Coast Appraisal Manual page XXX for the definition of Eco-System Based Management. | D16: Forest District
A17: Volumes | B17: AAC Volume | C17: Client's Provincial Crown Allowable Annual Cut Volume in cubic meters (m3) | D17: https://www2.gov.bc.ca/gov/content/industry/forestry/competitive-forest-industry/timber-pricing/harvest-billing-system
B18: Harvest / Production Volume (m3) | C18: Client's Provincial Crown Production Volume in cubic meters (m3)
B19: Waste Volume | C19: Client's Provincial Crown Waste Volume in cubic meters (m3)
A21: Schedule A1 & A2 | B21: Total Direct Costs For Single & Multi-Contractor Costs | C21: Category: Total of Stump to Dump annual log operations costs for Provincial Crown Volume reported. | D21: Schedule A.1 and A.2 (Company Crew or Single & Multi-phase Contractor Costs. All combined)
B22: Company Own & Contractor Costs Single & Multi-Phase | C22: Total dollar cost of these stump to dump phases excluding the specific phases noted elsewhere Schedule A1, A2, A3, A4; includes heli-logging. | D22: Single-Phase; Multi-Phase; Schedule A.1; Schedule A.2
B23: Sorting, Booming & Storage | C23: Total dollar cost associated with these phases excluding scaling. | D23: Sort; Boom; Storage
B24: Transport | C24: Total dollar cost of all forms of transport (barging; towing; truck hauling) used to transport logs. | D24: Hauling; Inland Water; Towing; Barging; Storage
B25: Other Costs | C25: Total dollar cost of activities not specifically noted within the definitions above for this Schedule but pertain to single and multi-phase contractor costs. | D25: Other Costs
A26: Schedule A3 | B26: Total In-Direct Costs (includes use of contractors) | C26: Category: Indirect Costs can include multi-year pro-rated costs including Camp Costs but excludes General & Administrative Costs for Provincial Crown Volume reported. | D26: Schedule A.3
B27: Road Construction / Development Costs | C27: Total dollar cost of road, bridge and log dump construction for primary, secondary, spur and spar roads including betterments etc. | D27: Road; Bridge; Log Dumps; Schedule A.3
B28: Road Management | C28: Total dollar costs of annual road management which include snow ploughing, allowable culvert replacement, de-activation etc. It does not include road betterment. | D28: Road Management; Schedule B.1
B29: Forest Planning | C29: Total dollar costs of Forest Planning and Cut Block Layout. Includes Forest Health and Forest Management and includes Fire Protection. | D29: Engineering and Forestry; Schedule B.2;
B30: Silviculture Spending & Accrual | C30: Total dollar costs of Silviculture including Incremental and Enhanced costs. | D30: Silviculture; Schedule B.4
B31: Camp Costs | C31: Total dollar cost of running camps not included within other phases. | D31: See Camp Costs Main Survey
B32: Other Costs | C32: Total dollar cost of activities not specifically noted within the definitions above for this Schedule but pertain to single and multi-phase contractor costs. Include Scaling and Waste Assessment costs. | D32: Other Costs
A33: Schedule A4 | B33: Total Stumpage, Rents and Taxes | C33: Category: Corporate Stumpage, Rents, Fees and Corporate Overhead that is not Camp Overhead for Provincial Crown Volume reported. | D33: Schedule A.4 (Stumpage, Rents & Fees) & Schedule B.3 (General & Administrative Expenses)
B34: Stumpage, Rents & Fees | C34: Total dollar cost of stumpage, rents and fees pertaining to municipal, provincial, federal or private sources. | D34: Schedule A.4; Stumpage; Rents; Fees
B35: Log Trading & Supply | C35: Total costs of Log Trading and Supply including broker fees but excluding the components of any revenue sharing agreement. | D35: Schedule B.3 Log Trading & Supply
B36: Corporate General & Administrative Overhead (non-camp) | C36: Total cost of General & Administrative overhead, excluding Camp Costs, Executive, Proprietary, Investing or Financing Costs, Advertising, Bonuses, Non-tenure related Legal Costs etc.; see Appendix A of the main cost survey instructions for an extensive list of dis-allowed costs. | D36: Schedule B.3; Corporate General Administrative
B37: Total Delivered Log Cost (TDLC) | C37: This is the sum total of (operating) dollars reported for the A Schedules. The dollars do not include mill or other non-logging divisions / functions costs, other than allocated overhead. This value must be reconcilable to the management operating financial statements. | D37: Total Delivered Log Cost; Schedule A.4

Sheet TDLC Data Entry
A1: Total Delivered Log Cost Data Entry Sheet
A2: Refer to the definitions tab within this work book for the definitions, and populate the template below.
A3: The definitions are noted to each Category cell below.
A4: Cost Base | B4: District | C4: DCR-NonEBM | D4: DCR-EBM | E4: DCK | F4: DNC-EBM | G4: DNI-NonEBM | H4: DNI-EBM | I4: DHG-EBM | J4: DSI-NonEBM | K4: DSI-Clay^ | L4: DSQ | M4: DSC | N4: Total Dollars
A5: 2020 TDLC | B5: Category (scrolls up)
A6: Volumes | B6: Harvest / Production Volume (m3) | N6: =SUM(C6:M6) -> 0
B7: Waste Volume (m3)
B8: Allowable Annual Cut (m3) | N8: =SUM(C8:M8) -> 0
A9: Schedule A1 & A2 | B9: Company Own & Contractor Costs; Single & Multi-Phase; Stump to Dump | N9: 0
B10: Sorting, Scaling, Booming & Storage | N10: 0
B11: Transport | N11: 0
B12: Other Costs | N12: 0
B13: Total Direct Costs For Single & Multi-Contractor Costs | C13: =SUM(C9:C12) -> 0 | D13: =SUM(D9:D12) -> 0 | E13: 0 | F13: 0 | G13: 0 | H13: 0 | I13: 0 | J13: 0 | K13: 0 | L13: 0 | M13: 0 | N13: 0
A14: Schedule A3 | B14: Road, Bridge, Log Dump Construction / Development Costs | N14: 0
B15: Road Mangement | N15: 0
B16: Forest Planning & Contract Control | N16: 0
B17: Silviculture Spending & Accrual (incl: Incremental & Enhanced) | N17: 0
B18: Camp Costs (not reported under Schedule A1 & A2) | N18: 0
B19: Other Costs (e.g. Amortization; Depreciation etc.) | N19: 0
B20: Total In-Direct Costs (includes use of contractors) | C20: =SUM(C14:C19) -> 0 | D20: =SUM(D14:D19) -> 0 | E20: 0 | F20: 0 | G20: 0 | H20: 0 | I20: 0 | J20: 0 | K20: 0 | L20: 0 | M20: 0 | N20: 0
A21: Schedule A4 | B21: Stumpage, Rents & Fees | N21: 0
B22: Log Trading & Supply | N22: 0
B23: General & Administrative Overhead | N23: 0
B24: Total Stumpage, Rents and Taxes | C24: =SUM(C21:C23) -> 0 | D24: =SUM(D21:D23) -> 0 | E24: 0 | F24: 0 | G24: 0 | H24: 0 | I24: 0 | J24: 0 | K24: 0 | L24: 0 | M24: 0 | N24: 0
A25: TDLC | B25: Total Delivered Log Cost | N25: =N13+N20+N24 -> 0
B26: Note total company expenditures ( dollars ) from the Income and Expenditures statement
B27: Reconciling Items ( total dollars of all items )
B29: Complete the following boxes:
B30: If license is managed under a Partnership or Joint Venture, provide the names of partners:
B31: If the license is managed by third parties, the name of the forest manager:
B32: Name of stump to dump contractor if applicable:
B33: Name of log broker if applicable:
B34: If there was curtailment to business in any of the years 2017, 2018, 2020, then please make notes on the nature of this situation to the comments tab.
B35: A note regarding the nature of the reconciling items as a note to the comments tab; this is the reconciling variance of TDLC to the expenses section of the financial statement
B36: Attach a copy of the company Income and Expenditures statement and budget for each reporting year.

Sheet SchB.5
A1: Schedule B.5
A2: Instructions: Refer to the definitions found within the Main, Primary, Long Form Survey Instructions for 2021 to complete this workbook tab
A3: Road Survey (RS)
H4: Use only this spreadsheet for your submission; One sheet per CONTRACT.
H5: Red Carat notes have been provided for guidance.
B6: _____of______ | C6: Sheets (e.g. 1 of 5 sheets) | H6: Only information from "Bank Height Method" contracts are eligible.
A7: Contractor (name): | H7: Fill in ALL columns
A8: Contract #: | H8: Certification of Submitting Forest Professional
A10: Please view message pane at end of row to ensure data has been entered correctly & Manually Save before closing file. Formatting: Not all categories will have costs assigned. But, if there are costs, then the entire row must be populated.
A11: Line | B11: District | C11: Point of Origin Area* | D11: Location TSB** or TFL/Block | E11: Isolated or Accessible | F11: EBM or Non-EBM | G11: Company Operation or BCTS Business Area | H11: Bank height Construction Category | I11: Rock Hardness | J11: Cost ($.$$) | K11: Length (m) | L11: $/Metre | M11: Ballast Haul Distance (km) | R11: **TSB List | V11: *Point of Origin Area List
A12: 1 | H12: OM-LB | L12: =IF(ISBLANK(J12),"",(IF(ISBLANK(K12),"",J12/K12))) ->  | N12: =COUNTBLANK($B12:$M12) -> 11 | R12: 25E | V12: BKCL | W12: Barkley-Clayoquot
A13: 2 | H13: OM-PR | L13: =IF(ISBLANK(J13),"",(IF(ISBLANK(K13),"",J13/K13))) ->  | N13: 11 | R13: 30E | S13: Nahatlatch | V13: BUTE | W13: Bute Inlet
A14: 3 | H14: OM-RB | I14: S/M | L14: =IF(ISBLANK(J14),"",(IF(ISBLANK(K14),"",J14/K14))) ->  | N14: 10 | O14: =IF(N14=0,"Entry Complete",IF(AND(N14>0,N14<10),"Entry in progress",IF(N14=10,""))) ->  | R14: 30G | S14: Upper Pitt | V14: CHSH | W14: Chilliwack-Silverhope
A15: 4 | H15: TOE | I15: S/M | L15: =IF(ISBLANK(J15),"",(IF(ISBLANK(K15),"",J15/K15))) ->  | N15: 10 | O15: =IF(N15=0,"Entry Complete",IF(AND(N15>0,N15<10),"Entry in progress",IF(N15=10,""))) ->  | R15: 30H | S15: Maple Ridge | V15: COCO | W15: Courtney-Comox
A16: 5 | H16: MRK | I16: S/M | L16: =IF(ISBLANK(J16),"",(IF(ISBLANK(K16),"",J16/K16))) ->  | N16: 10 | O16: =IF(N16=0,"Entry Complete",IF(AND(N16>0,N16<10),"Entry in progress",IF(N16=10,""))) ->  | R16: 30I | S16: Chilliwack-Silverhope | V16: DEWD | W16: Dewdney
A17: 6 | H17: HRK | I17: S/M | N17: 10 | R17: 31B | S17: Port Douglas | V17: DRSE | W17: Drury-Seymour
A18: 7 | H18: XRK | I18: S/M | N18: 10 | R18: 31D | S18: Squamish-Pemberton | V18: ESPE | W18: Esperanza
A19: 8 | H19: XXRK | I19: S/M | L19: =IF(ISBLANK(J19),"",(IF(ISBLANK(K19),"",J19/K19))) ->  | N19: 10 | O19: =IF(N19=0,"Entry Complete",IF(AND(N19>0,N19<10),"Entry in progress",IF(N19=10,""))) ->  | R19: 38A | S19: Barkley | V19: GKIN | W19: Gilford-Knight
A20: 9 | H20: XXXRK | I20: S/M | N20: 10 | R20: 38B | S20: Nanaimo | V20: GRIS | W20: Graham Island
A21: 10 | H21: OM-RB | I21: Hard | N21: 10 | R21: 38C | S21: Cowichan | V21: HARR | W21: Harrison
A22: 11 | H22: TOE | I22: Hard | N22: 10 | R22: 39C | S22: Powell River | V22: JEIS | W22: Jervis-Sechelt
A23: 12 | H23: MRK | I23: Hard | N23: 10 | R23: 46A | V23: JUDF | W23: Juan de Fuca
A24: 13 | H24: HRK | I24: Hard | N24: 10 | R24: 46B | V24: KEAD | W24: Kelsey-Adam
A25: 14 | H25: XRK | I25: Hard | N25: 10 | R25: 46C | V25: KOKI | W25: Kokish
A26: 15 | H26: XXRK | I26: Hard | N26: 10 | R26: 46D | V26: LOMD | W26: Lower Mainland
A27: 16 | H27: XXXRK | I27: Hard | N27: 10 | R27: 46E | V27: MESF | W27: Menzies-Sayward Forest
R28: 46F | V28: NTHC | W28: North Coast
R29: 46G | S29: Stewart | V29: PIME | W29: Pitt Meadows
R30: 46H | S30: Alice Arm | V30: POMH | W30: Port McNeill-Hardy
R31: 46I | S31: Skeena | V31: QUSO | W31: Quatsino Sound
D32: Space For Additional Comments: | R32: 46J | S32: Outer Coast | V32: SLOQ | W32: Sloquet
R33: 46K | S33: Douglas | V33: SEVI | W33: Southeast Vancouver Island
R34: 47A | S34: Seymour | V34: SPLK | W34: Sproat Lake
R35: 47B | S35: Broughton | V35: SQPM | W35: Squamish-Pemberton
R36: 47C | S36: Klinaklini | V36: SUCO | W36: Sunshine Coast
R37: 47D | S37: Loughborough | V37: THUR | W37: Thurlow
R38: 48A | S38: Brooks
R39: 48B | S39: Cape Scott
K40: Note: This workbook / schedule is confidential once populated with data | R40: 48C | S40: Broughton
R41: 48D | S41: Sayward
R42: 48E | S42: Kyuquot
A98: Dropdown Lists
B101: District | D101: Isolated or Accessible | E101: EBM or Non-EBM | M101: Ballast Haul Distance List
B102: DCK | D102: =R12 & " " & S12 -> 25E | E102: Accessible | F102: EBM | M102: 0- 1.0 km
B103: DSC | D103: 30E Nahatlatch | E103: Isolated | F103: Non-EBM | M103: 1.001 km - 1.5 km
B104: DHG | D104: 30G Upper Pitt | M104: 1.501 - 2.0 km
B105: DNI | D105: 30H Maple Ridge | M105: 2.001 km - 3.2 km
B106: DKM | D106: 30I Chilliwack-Silverhope | M106: > 3.2 km
B107: DSI | D107: 31B Port Douglas
B108: DCR | D108: 31D Squamish-Pemberton
B109: DSQ | D109: 38A Barkley
D110: 38B Nanaimo
D111: 38C Cowichan
D112: 39C Powell River
D113: 46A
D114: 46B
D115: 46C
D116: 46D
D117: 46E
D118: 46F
D119: 46G Stewart
D120: 46H Alice Arm
D121: 46I Skeena
D122: 46J Outer Coast
D123: 46K Douglas
D124: 47A Seymour
D125: 47B Broughton
D126: 47C Klinaklini
D127: 47D Loughborough
D128: 48A Brooks
D129: 48B Cape Scott
D130: 48C Broughton
D131: 48D Sayward
D132: 48E Kyuquot

Sheet SchB.6
A1: Schedule B.6
A2: Instructions: Refer to the definitions found within the Main, Primary, Long Form Survey Instructions for 2021 to complete this workbook tab
A3: Bridge Survey (BS)
B5: _____of_____ | C5: Sheets (e.g. 1 of 5 sheets) | F5: Certification of Submitting Forest Professional: | M5: (name of Forest Professional)
A8: Notes: Please view message pane at end of row to ensure data has been entered correctly & Manually Save before closing file. | J8: Superstructure | N8: Substructure | P8: Cost of Bridge ($)
A9: Use only this spreadsheet for your submission; Red Carats have been provided for guidance; Costs reflect NEW bridges at NEW locations; Fill in ALL columns; | J9: Girder/Stringer | L9: Deck
A10: Line | B10: Bridge Structure ID | C10: District | D10: Company Operation Name or BCTS Business Area | E10: EBM or Non-EBM | F10: Road Name | G10: Road Station | H10: Bridge Type | I10: Design Load Capacity (L60-L175) | J10: Material | K10: Length (m) | L10: Material | M10: Width (m) | N10: Material | O10: Height (m) | P10: Bridge Supply Cost ($) | Q10: Bridge Planning and Installation (Approach Works) ($) | R10: Total Bridge Cost ($)
A11: 1 | R11: =Table2[[#This Row],[Bridge Supply Cost ($)]]+Table2[[#This Row],[Bridge Planning and Installation (Approach Works) ($)]] -> 0 | S11: =COUNTBLANK($B11:$R11) -> 16 | T11: =_xlfn.IFS(AND(S11=0, U11=""), "Entry Complete", AND(S11=0, U11<>""), "Entry Incomplete", AND(S11>0, S11<16), "Entry in progress",S11=16, "") ->  | U11: =IF(V11 <> "",V11, W11) ->  | V11: =IF(AND(Table2[[#This Row],[Bridge Type]]="Log", Table2[[#This Row],[Width (m)]] > 5.5),"If Bridge Type is Log, Deck Width must be <= 5.5m","") ->  | W11: =IF(AND(OR(Table2[[#This Row],[Bridge Type]]=("Permanent"),Table2[[#This Row],[Bridge Type]]=("Portable")), Table2[[#This Row],[Width (m)]] >4.9),"If Bridge Type is Permanent/Portable, Deck Width must be <= 4.9m","") -> 
A12: 2 | R12: =Table2[[#This Row],[Bridge Supply Cost ($)]]+Table2[[#This Row],[Bridge Planning and Installation (Approach Works) ($)]] -> 0 | S12: 16 | V12: =IF(AND(Table2[[#This Row],[Bridge Type]]="Log", Table2[[#This Row],[Width (m)]] > 5.5),"If Bridge Type is Log, Deck Width must be <= 5.5m","") ->  | W12: =IF(AND(OR(Table2[[#This Row],[Bridge Type]]=("Permanent"),Table2[[#This Row],[Bridge Type]]=("Portable")), Table2[[#This Row],[Width (m)]] >4.9),"If Bridge Type is Permanent/Portable, Deck Width must be <= 4.9m","") -> 
A13: 3 | R13: =Table2[[#This Row],[Bridge Supply Cost ($)]]+Table2[[#This Row],[Bridge Planning and Installation (Approach Works) ($)]] -> 0 | S13: 16 | V13: =IF(AND(Table2[[#This Row],[Bridge Type]]="Log", Table2[[#This Row],[Width (m)]] > 5.5),"If Bridge Type is Log, Deck Width must be <= 5.5m","") ->  | W13: =IF(AND(OR(Table2[[#This Row],[Bridge Type]]=("Permanent"),Table2[[#This Row],[Bridge Type]]=("Portable")), Table2[[#This Row],[Width (m)]] >4.9),"If Bridge Type is Permanent/Portable, Deck Width must be <= 4.9m","") -> 
A14: 4 | R14: =Table2[[#This Row],[Bridge Supply Cost ($)]]+Table2[[#This Row],[Bridge Planning and Installation (Approach Works) ($)]] -> 0 | S14: 16 | V14: =IF(AND(Table2[[#This Row],[Bridge Type]]="Log", Table2[[#This Row],[Width (m)]] > 5.5),"If Bridge Type is Log, Deck Width must be <= 5.5m","") ->  | W14: =IF(AND(OR(Table2[[#This Row],[Bridge Type]]=("Permanent"),Table2[[#This Row],[Bridge Type]]=("Portable")), Table2[[#This Row],[Width (m)]] >4.9),"If Bridge Type is Permanent/Portable, Deck Width must be <= 4.9m","") -> 
A15: 5 | R15: =Table2[[#This Row],[Bridge Supply Cost ($)]]+Table2[[#This Row],[Bridge Planning and Installation (Approach Works) ($)]] -> 0 | S15: 16 | V15: =IF(AND(Table2[[#This Row],[Bridge Type]]="Log", Table2[[#This Row],[Width (m)]] > 5.5),"If Bridge Type is Log, Deck Width must be <= 5.5m","") ->  | W15: =IF(AND(OR(Table2[[#This Row],[Bridge Type]]=("Permanent"),Table2[[#This Row],[Bridge Type]]=("Portable")), Table2[[#This Row],[Width (m)]] >4.9),"If Bridge Type is Permanent/Portable, Deck Width must be <= 4.9m","") -> 
A16: 6 | R16: =Table2[[#This Row],[Bridge Supply Cost ($)]]+Table2[[#This Row],[Bridge Planning and Installation (Approach Works) ($)]] -> 0 | S16: 16 | V16: =IF(AND(Table2[[#This Row],[Bridge Type]]="Log", Table2[[#This Row],[Width (m)]] > 5.5),"If Bridge Type is Log, Deck Width must be <= 5.5m","") ->  | W16: =IF(AND(OR(Table2[[#This Row],[Bridge Type]]=("Permanent"),Table2[[#This Row],[Bridge Type]]=("Portable")), Table2[[#This Row],[Width (m)]] >4.9),"If Bridge Type is Permanent/Portable, Deck Width must be <= 4.9m","") -> 
A17: 7 | R17: =Table2[[#This Row],[Bridge Supply Cost ($)]]+Table2[[#This Row],[Bridge Planning and Installation (Approach Works) ($)]] -> 0 | S17: 16 | V17: =IF(AND(Table2[[#This Row],[Bridge Type]]="Log", Table2[[#This Row],[Width (m)]] > 5.5),"If Bridge Type is Log, Deck Width must be <= 5.5m","") ->  | W17: =IF(AND(OR(Table2[[#This Row],[Bridge Type]]=("Permanent"),Table2[[#This Row],[Bridge Type]]=("Portable")), Table2[[#This Row],[Width (m)]] >4.9),"If Bridge Type is Permanent/Portable, Deck Width must be <= 4.9m","") -> 
A18: 8 | R18: =Table2[[#This Row],[Bridge Supply Cost ($)]]+Table2[[#This Row],[Bridge Planning and Installation (Approach Works) ($)]] -> 0 | S18: 16 | V18: =IF(AND(Table2[[#This Row],[Bridge Type]]="Log", Table2[[#This Row],[Width (m)]] > 5.5),"If Bridge Type is Log, Deck Width must be <= 5.5m","") ->  | W18: =IF(AND(OR(Table2[[#This Row],[Bridge Type]]=("Permanent"),Table2[[#This Row],[Bridge Type]]=("Portable")), Table2[[#This Row],[Width (m)]] >4.9),"If Bridge Type is Permanent/Portable, Deck Width must be <= 4.9m","") -> 
A19: 9 | R19: =Table2[[#This Row],[Bridge Supply Cost ($)]]+Table2[[#This Row],[Bridge Planning and Installation (Approach Works) ($)]] -> 0 | S19: 16 | V19: =IF(AND(Table2[[#This Row],[Bridge Type]]="Log", Table2[[#This Row],[Width (m)]] > 5.5),"If Bridge Type is Log, Deck Width must be <= 5.5m","") ->  | W19: =IF(AND(OR(Table2[[#This Row],[Bridge Type]]=("Permanent"),Table2[[#This Row],[Bridge Type]]=("Portable")), Table2[[#This Row],[Width (m)]] >4.9),"If Bridge Type is Permanent/Portable, Deck Width must be <= 4.9m","") -> 
A20: 10 | R20: =Table2[[#This Row],[Bridge Supply Cost ($)]]+Table2[[#This Row],[Bridge Planning and Installation (Approach Works) ($)]] -> 0 | S20: 16 | V20: =IF(AND(Table2[[#This Row],[Bridge Type]]="Log", Table2[[#This Row],[Width (m)]] > 5.5),"If Bridge Type is Log, Deck Width must be <= 5.5m","") ->  | W20: =IF(AND(OR(Table2[[#This Row],[Bridge Type]]=("Permanent"),Table2[[#This Row],[Bridge Type]]=("Portable")), Table2[[#This Row],[Width (m)]] >4.9),"If Bridge Type is Permanent/Portable, Deck Width must be <= 4.9m","") -> 
A21: 11 | R21: =Table2[[#This Row],[Bridge Supply Cost ($)]]+Table2[[#This Row],[Bridge Planning and Installation (Approach Works) ($)]] -> 0 | S21: 16 | V21: =IF(AND(Table2[[#This Row],[Bridge Type]]="Log", Table2[[#This Row],[Width (m)]] > 5.5),"If Bridge Type is Log, Deck Width must be <= 5.5m","") ->  | W21: =IF(AND(OR(Table2[[#This Row],[Bridge Type]]=("Permanent"),Table2[[#This Row],[Bridge Type]]=("Portable")), Table2[[#This Row],[Width (m)]] >4.9),"If Bridge Type is Permanent/Portable, Deck Width must be <= 4.9m","") -> 
A22: 12 | R22: =Table2[[#This Row],[Bridge Supply Cost ($)]]+Table2[[#This Row],[Bridge Planning and Installation (Approach Works) ($)]] -> 0 | S22: 16 | V22: =IF(AND(Table2[[#This Row],[Bridge Type]]="Log", Table2[[#This Row],[Width (m)]] > 5.5),"If Bridge Type is Log, Deck Width must be <= 5.5m","") ->  | W22: =IF(AND(OR(Table2[[#This Row],[Bridge Type]]=("Permanent"),Table2[[#This Row],[Bridge Type]]=("Portable")), Table2[[#This Row],[Width (m)]] >4.9),"If Bridge Type is Permanent/Portable, Deck Width must be <= 4.9m","") -> 
A23: 13 | R23: =Table2[[#This Row],[Bridge Supply Cost ($)]]+Table2[[#This Row],[Bridge Planning and Installation (Approach Works) ($)]] -> 0 | S23: 16 | V23: =IF(AND(Table2[[#This Row],[Bridge Type]]="Log", Table2[[#This Row],[Width (m)]] > 5.5),"If Bridge Type is Log, Deck Width must be <= 5.5m","") ->  | W23: =IF(AND(OR(Table2[[#This Row],[Bridge Type]]=("Permanent"),Table2[[#This Row],[Bridge Type]]=("Portable")), Table2[[#This Row],[Width (m)]] >4.9),"If Bridge Type is Permanent/Portable, Deck Width must be <= 4.9m","") -> 
A24: 14 | R24: =Table2[[#This Row],[Bridge Supply Cost ($)]]+Table2[[#This Row],[Bridge Planning and Installation (Approach Works) ($)]] -> 0 | S24: 16 | V24: =IF(AND(Table2[[#This Row],[Bridge Type]]="Log", Table2[[#This Row],[Width (m)]] > 5.5),"If Bridge Type is Log, Deck Width must be <= 5.5m","") ->  | W24: =IF(AND(OR(Table2[[#This Row],[Bridge Type]]=("Permanent"),Table2[[#This Row],[Bridge Type]]=("Portable")), Table2[[#This Row],[Width (m)]] >4.9),"If Bridge Type is Permanent/Portable, Deck Width must be <= 4.9m","") -> 
A25: 15 | R25: =Table2[[#This Row],[Bridge Supply Cost ($)]]+Table2[[#This Row],[Bridge Planning and Installation (Approach Works) ($)]] -> 0 | S25: 16 | V25: =IF(AND(Table2[[#This Row],[Bridge Type]]="Log", Table2[[#This Row],[Width (m)]] > 5.5),"If Bridge Type is Log, Deck Width must be <= 5.5m","") ->  | W25: =IF(AND(OR(Table2[[#This Row],[Bridge Type]]=("Permanent"),Table2[[#This Row],[Bridge Type]]=("Portable")), Table2[[#This Row],[Width (m)]] >4.9),"If Bridge Type is Permanent/Portable, Deck Width must be <= 4.9m","") -> 
D27: Space For Additional Comments:
D133: lists
D134: New
D135: Replacement
D137: Gravel
D138: Concrete
D139: Steel
D140: Wood
D142: Permanent/Portable
D143: Log

Sheet Sch.B.7
A1: Schedule B.7
A2: Instructions: Refer to the definitions found within the Main, Primary, Long Form Survey Instructions for 2021
A3: Wood Culverts (WC)
A5: District | B5: Crib Height (meters) | C5: Culvert Length (meters) | D5: # Culverts | E5: Total ($)
B6: 1 | C6: 3
B7: 1 | C7: 4
B8: 1 | C8: 5
B9: 2 | C9: 3
B10: 2 | C10: 4
B11: 2 | C11: 5
A12: This workbook / schedule is considered to be confidential once populated with data

Sheet Sch.B.8
A1: Schedule B.8
A2: Instructions: Refer to the definitions found within the Main, Primary, Long Form Survey Instructions for 2021
A3: Off Highway Logging Truck and Lowbeds (OHLTL)
A5: Off Highway Logging Truck
A6: District | B6: Maximum Capacity | C6: Manufacturer | D6: Model Year | E6: Model Name | F6: Hourly rate
A11: Add Rows As Required
A13: Off Highway Lowbed & Truck
A14: District | B14: Maximum Capacity | C14: Manufacturer | D14: Model Year | E14: Model Name | F14: Hourly rate
A18: Add Rows As Required
A19: Note: This workbook / schedule is considered to be confidential once populated with data

Sheet SchB.10
A1: 2021 Coast Crown Tenure Management Cost Survey Template (cost base 2020)
A2: Ministry of Forests, Lands, Natural Resource Operations and Rural Development, Timber Pricing Branch
A3: Schedule B.10
A4: Barging or Towing to Final Destination
A6: Page _ of _
B7: Name of broker used for barge and tow, if this applies: | H7: Name of forestry manager, if this applies:
B9: Cost Base Year | C9: Licensee | D9: Operation/ Location | E9: Towing or Barging (select from drop down list) | F9: Location of Local Tie-up Grounds (describe) | G9: Nearest Appraisal Log Dump (refer to Appendix VI of the CAM) | H9: Destination (describe) | I9: Local Tie-up Point of Origin Area (select CODE from drop down list) | J9: Distance (km) (refer to the Towing and Barging Distance Table and adjust as required) | K9: Cost ($) to Transport Logs from Local Tie-up to Destination | L9: Volume (m3) of Logs Transported from Local Tie-up to Destination | M9: Total Unit Cost ($/m3) to Transport Logs from Local Tie-up to Destination
M10: =K10/L10 -> 
M11: =K11/L11 -> 
M12: =K12/L12 -> 
M13: =K13/L13 -> 
M14: =K14/L14 -> 
M15: =K15/L15 -> 
M16: =K16/L16 -> 
M17: =K17/L17 -> 
M18: =K18/L18 -> 
M19: =K19/L19 -> 
M20: =K20/L20 -> 
M21: =K21/L21 -> 
M22: =K22/L22 -> 
M23: =K23/L23 -> 
M24: =K24/L24 -> 
M25: =K25/L25 -> 
A28: Barge & Tow Reference Tables #1, #2 and #3 (scroll down and right)
B30: Reference: Table #1 | K30: Reference:: Table #2 | Q30: Reference: Table #3
B31: Barging/Towing Cost Survey - Distances | K31: Barging/Towing Cost Survey - Distances | Q31: Barging/Towing Cost Survey - Distances
B33: Barging Points of Origin | C33: To Port Alberni (km) | D33: To Gambier Island (km) | F33: Barging Points of Origin | G33: To Gambier Island (km) | K33: Points of Origin | L33: Towing To Port Alberni (km) | M33: Barging To Gambier Island (km) | Q33: Towing Points of Origin | R33: To Chemainus (km) | S33: To Gambier Island (km) | U33: Towing Points of Origin | V33: To Gambier Island (km)
B35: Clayoquot Sound: | F35: Mainland Coast: | K35: Barkley Sound: | Q35: East Coast Vancouver Island: | U35: East Coast Vancouver Island:
B36: Rankin Cove | C36: 178 | D36: =C36+242 -> 420 | F36: Cape Caution | G36: 467 | K36: Port Alberni | L36: 0 | M36: 391 | Q36: Chemainus | R36: 0 | S36: 69 | U36: Port Hardy | V36: 432
B37: Head of Bedwell Sound | C37: 166 | D37: =C37+242 -> 408 | F37: Boswell Inlet | G37: 467 | K37: China Creek | L37: 11 | M37: 380 | Q37: Cowichan Bay | R37: 27 | S37: 96 | U37: Port McNeill | V37: 397
B38: Cypre River | C38: 149 | D38: =C38+242 -> 391 | F38: Head of Rivers Inlet | G38: 509 | K38: Coleman Creek | L38: 28 | M38: 363 | Q38: Ladysmith | R38: 14 | S38: 73 | U38: Beaver Cove | V38: 379
B39: Steamer Cove | C39: 180 | D39: =C39+242 -> 422 | F39: Moses Inlet | G39: 508 | K39: Sarita River | L39: 50 | M39: 341 | Q39: Nanaimo | R39: 32 | S39: 55 | U39: Naka Creek | V39: 346
F40: Nootum River | G40: 530 | K40: Spencer Creek | L40: 33 | M40: 358 | U40: Eve River | V40: 335
B41: Nootka Sound: | F41: Kwatna Bay | G41: 572 | K41: Toquart Bay | L41: 74 | M41: 355 | Q41: Southwest Coast Vancouver Island: | U41: Southeast Bay | V41: 328
B42: Blowhole Bay | C42: 239 | D42: =C42+242 -> 481 | F42: Bella Coola | G42: 608 | K42: Uchucklesit | L42: 45 | M42: 358 | Q42: Jordan River | R42: 144 | S42: 213 | U42: Kelsey Bay | V42: 248
B43: Gold River | C43: 248 | D43: =C43+242 -> 490 | F43: Head of South Bentinck Arm | G43: 633 | K43: Ucluelet | L43: 84 | M43: 349 | Q43: Sooke | R43: 123 | S43: 192 | U43: Menzies Bay | V43: 185
B44: Head Bay | C44: 238 | D44: =C44+242 -> 480 | F44: Campbell Island | G44: 552 | Q44: Victoria | R44: 86 | S44: 155 | U44: Courtenay | V44: 130
B45: Houston River | C45: 233 | D45: =C45+242 -> 475 | F45: Ocean Falls | G45: 562 | U45: Northwest Bay | V45: 68
B46: Kendrick Inlet | C46: 224 | D46: =C46+242 -> 466 | F46: Elcho Harbour | G46: 585
B47: McCurdy Creek | C47: 243 | D47: =C47+242 -> 485 | F47: Kimsquit | G47: 656 | Q47: Towing Points of Origin | R47: To Pitt River Bridge (km) | S47: To Gambier Island (km) | U47: Mainland Coast (North Island District):
B48: Mooyah River | C48: 223 | D48: =C48+242 -> 465 | F48: Klemtu | G48: 606 | Q48: Chilliwack | R48: 75 | S48: 143 | U48: Mereworth Sound | V48: 491
B49: Plumper Harbour | C49: 221 | D49: =C49+242 -> 463 | Q49: Foot Harrison Lake | R49: 95 | S49: 163 | U49: Seymour Inlet | V49: 534
B50: Tahsis | C50: 250 | D50: =C50+242 -> 492 | F50: North Coast: | Q50: Foot of Pitt Lake | R50: 13 | S50: 81 | U50: Drury Inlet | V50: 425
B51: Tlupana River | C51: 237 | D51: =C51+242 -> 479 | F51: Kemano Bay | G51: 821 | Q51: Harrison Bay | R51: 84 | S51: 152 | U51: Wakeman Sound | V51: 437
B52: Tsowwin | C52: 232 | D52: =C52+242 -> 474 | F52: Bishop Bay | G52: 818 | Q52: Hatzic | R52: 36 | S52: 104 | U52: Head of Kingcome Inlet | V52: 442
F53: Weewanie Creek | G53: 765 | Q53: Head Harrison Lake | R53: 155 | S53: 223 | U53: Mouth of Kingcome Inlet | V53: 414
B54: Esperanza Inlet: | F54: Kumealon Inlet | G54: 821 | Q54: Head Pitt Lake | R54: 44 | S54: 112 | U54: Port Elizabeth | V54: 406
B55: Barr Creek | C55: 268 | D55: =C55+242 -> 510 | F55: Porcher Island | G55: 858 | Q55: Mid Harrison Lake | R55: 126 | S55: 194 | U55: Thompson Sound | V55: 436
B56: Espinosa Inlet | C56: 266 | D56: =C56+242 -> 508 | F56: Prince Rupert | G56: 879 | Q56: Pitt River Bridge | R56: 0 | S56: 68 | U56: Head of Knight Inlet | V56: 504
B57: Hecate Channel | C57: 249 | D57: =C57+242 -> 491 | F57: Tuck Inlet | G57: 907 | Q57: Silverhope Creek | R57: 106 | S57: 174 | U57: Mouth of Knight Inlet | V57: 415
B58: Port Eliza | C58: 253 | D58: =C58+242 -> 495 | F58: Head Work Channel | G58: 989 | Q58: Whonnock | R58: 23 | S58: 91 | U58: Port Harvey | V58: 344
B59: Zeballos | C59: 278 | D59: =C59+242 -> 520 | F59: Scotia River | G59: 891
F60: Kwinamass River | G60: 962 | U60: Mainland Coast (Campbell River District):
B61: Kyuquot Sound: | F61: Khutzeymateen Inlet | G61: 955 | U61: Head Loughborough Inlet | V61: 418
B62: Easy Inlet | C62: 291 | D62: =C62+242 -> 533 | F62: Nass Bay | G62: 1004 | U62: Port Neville | V62: 401
F63: Alice Arm | G63: 1070 | U63: Forward Harbour | V63: 389
B64: Checleset Bay: | F64: Stewart | G64: 1116 | U64: Mouth Loughborough Inlet | V64: 384
B65: Ououkinsh Inlet | C65: 314 | D65: =C65+242 -> 556 | F65: Haida Gwaii: | U65: Phillips Arm | V65: 365
F66: Tasu Sound | G66: 831 | U66: Frederick Arm | V66: 363
B67: Quatsino Sound: | F67: Sewell Inlet | G67: 808
B68: Cleagh Creek | C68: 372 | D68: =C68+242 -> 614 | F68: Beattie Anchorage | G68: 783 | U68: Mainland Coast (Sunshine Coast District):
B69: Coal Harbour | C69: 396 | D69: =C69+242 -> 638 | F69: South Bay | G69: 817 | U69: Head of Bute Inlet | V69: 267
B70: Holberg | C70: 424 | D70: =C70+242 -> 666 | F70: Alliford Bay | G70: 807 | U70: Mouth of Bute Inlet | V70: 198
B71: Hushamu Creek | C71: 411 | D71: =C71+242 -> 653 | F71: Skidegate Inlet | G71: 816 | U71: Head of Toba Inlet | V71: 220
B72: Ingersoll | C72: 382 | D72: =C72+242 -> 624 | F72: Honna River | G72: 812 | U72: Mouth of Toba Inlet | V72: 184
B73: Jeune Landing | C73: 393 | D73: =C73+242 -> 635 | F73: Rennell Sound | G73: 915 | U73: Teakerne Arm | V73: 156
B74: Koprino Harbour | C74: 365 | D74: =C74+242 -> 607 | F74: Ferguson Bay | G74: 946 | U74: Theodosia Inlet | V74: 153
B75: Kultus Cove | C75: 384 | D75: =C75+242 -> 626 | F75: McClinton Bay | G75: 999 | U75: Powell River | V75: 115
B76: Winter Harbour | C76: 361 | D76: =C76+242 -> 603 | F76: Dinan Bay | G76: 975 | U76: Stillwater | V76: 92
F77: Naden Harbour | G77: 971 | U77: Head of Jervis Inlet | V77: 174
U78: Mouth of Jervis Inlet | V78: 93
U79: Agamemnon | V79: 82
U80: Head of Sechelt Inlet | V80: 122
U81: McNab Creek | V81: 17
U82: Gambier | V82: 0
U84: Squamish | V84: 38
U85: Indian Arm | V85: 64
U86: Second Narrows | V86: 43
B91: Lists
B92: Towing or Barging
B93: Towing
B94: Barging
B95: Point of Origin Area Code | C95: Code
B96: Barkley-Clayoquot BKCL | C96: BKCL
B97: Bute Inlet BUTE | C97: BUTE
B98: Chilliwack-Silverhope CHSH | C98: CHSH
B99: Courtenay-Comox COCO | C99: COCO
B100: Dewdney DEWD | C100: DEWD
B101: Drury-Seymour DRSE | C101: DRSE
B102: Esperanza ESPE | C102: ESPE
B103: Gilford-Knight GKIN | C103: GKIN
B104: Graham Island GRIS | C104: GRIS
B105: Harrison HARR | C105: HARR
B106: Jervis-Sechelt JEIS | C106: JEIS
B107: Juan de Fuca JUDF | C107: JUDF
B108: Kelsey-Adam KEAD | C108: KEAD
B109: Kokish KOKI | C109: KOKI
B110: Lower Mainland LOMD | C110: LOMD
B111: Menzies-Sayward Forest MESF | C111: MESF
B112: Mid-Coast MIDC | C112: MIDC
B113: Nahatlatch NAHT | C113: NAHT
B114: Nootka Sound NOSO | C114: NOSO
B115: North Coast NTHC | C115: NTHC
B116: Pitt Meadows PIME | C116: PIME
B117: Port McNeill-Hardy POMH | C117: POMH
B118: Quatsino Sound QUSO | C118: QUSO
B119: Sloquet SLOQ | C119: SLOQ
B120: Southeast Vancouver Island SOVI | C120: SOVI
B121: Sproat Lake SPLK | C121: SPLK
B122: Squamish-Pemberton SQPM | C122: SQPM
B123: Sunshine Coast SUCO | C123: SUCO
B124: Thurlow THUR | C124: THUR

Sheet Sch.B9&B.11&B.12&B.13
A1: Main Survey Schedules B.9 & B.11 & B.12 & B.13
A2: Instructions: Refer to the definitions found within the Main, Primary, Long Form Survey Instructions for 2021 to complete this workbook tab
A3: Specified Operations: Inland Water Ways; Heli Single Standing Stem; Tree Crown Modification; Skyline
A5: Specified Operation | C5: District $ Costs
A6: Cost Base 2020 | C6: DCR-NonEBM | D6: DCR-EBM | E6: DCK | F6: DNC-EBM | G6: DNI-NonEBM | H6: DNI-EBM | I6: DHG-EBM | J6: DSI-NonEBM | K6: DSI-Clay^ | L6: DSQ | M6: DSC | N6: Total
A7: Inland Water Ways (Schedule B.9) | B7: Location of water
B8: Volume towed (m3)
B9: Distance towed (km)
B10: Dump and boom ($)
B11: Lake tow ($)
B12: Dewater and reload ($)
B13: Total ($) | C13: =C10+C12 -> 0 | D13: =D10+D12 -> 0 | E13: 0 | F13: 0 | G13: 0 | H13: 0 | I13: 0 | J13: 0 | K13: 0 | L13: 0 | M13: 0 | N13: 0
A14: Heli Single Standing Stem Selection (Schedule B.11) | B14: Standard heli costs within HSSSS contract ($) *
B15: Specific HSSSS (see CAM Section .4.4.4) costs ($)
B16: HSSSS Volume(m3)
B17: Total cost of HSSSS contract(s) ($)
B18: $ / m3 | C18: =C15/C16 ->  | D18: =D15/D16 -> 
A19: Old Growth Tree Crown Modification (Schedule B.13) | B19: Total cost $
B20: Area treated (ha)
B21: # Trees modified
B22: $ / Tree | C22: =C19/C21 ->  | D22: =D19/D21 -> 
A23: Second Growth Tree Crown Modification (Schedule B.13) | B23: Total cost $
B24: Area treated (ha)
B25: # Trees modified
B26: $ / Tree | C26: =C24/C25 ->  | D26: =D24/D25 -> 
A27: Skyline (Schedule B.12) | B27: Cut-block volume (m3)
B28: Skyline: volume(m3)
B29: # Intermediate supports
B30: Total cost $
B31: $ / m3 | C31: =C30/C28 ->  | D31: =D30/D28 ->  | E31: =E30/E28 ->  | G31: =G30/G28 ->  | H31: =H30/H28 -> 

Sheet Sch.B.14
A1: Schedule B.14
A2: Instructions: Refer to the definitions found within the Main, Primary, Long Form Survey Instructions for 2021
A3: Destumping For Root Disease Control (DRDC) with Biogeoclimatic Ecosystem Classification (BEC)
A5: Company Name
A7: Submitter Name(s)
A9: District (EBM/NON-EBM) (drop-down list) | B9: Timber Mark | C9: BEC/SubZone/ Variant (drop-down list) | D9: Relevant Production Volume (m3) | E9: Machinery Hours Onsite: Include Labour; Mob/ Demob Total | F9: Area Treated (ha) | G9: Total Cost ($) | H9: $/ha | I9: $/m3 | J9: Comments
H10: =G10/F10 ->  | I10: =G10/D10 -> 
H11: =G11/F11 ->  | I11: =G11/D11 -> 
A17: Copy & Insert Rows
A19: Note: To eliminate double counting with Sch B2 , transfer the totals from this Schedule once populated in to Sch B2 and make adjustments to the totals as required.
A20: This workbook / schedule is considered to be confidential once populated with data
A28: Please do not adjust the following tables
A29: District List | B29: BEC Variant List
A30: DCR-NonEBM | B30: Chilliwack Natural Resource District
A31: DCR-EBM | B31: CDF mm
A32: DCK | B32: CMA unp
A33: DNC-EBM | B33: CWH dm
A34: DNI-NonEBM | B34: CWH ds 1
A35: DNI-EBM | B35: CWH ms 1
A36: DHG-EBM | B36: CWH vm 1
A37: DSI-NonEBM | B37: CWH vm 2
A38: DSI-Clay^ | B38: CWH xm 1
A39: DSQ | B39: ESSFdc 2
A40: DSC | B40: ESSFdcp
B41: ESSFdcw
B42: ESSFmw 1
B43: ESSFmw 2
B44: ESSFmwp
B45: ESSFmww
B46: IDF dk 2
B47: IDF ww
B48: IDF ww 1
B49: IMA un
B50: IMA unp
B51: MH mm 1
B52: MH mm 2
B53: Sea to Sky Natural Resource District
B54: CMA unp
B55: CWH dm
B56: CWH ds 1
B57: CWH ms 1
B58: CWH vm 1
B59: CWH vm 2
B60: CWH xm 1
B61: ESSFdv 1
B62: ESSFdvp
B63: ESSFdvw
B64: ESSFmw 2
B65: ESSFmwp
B66: ESSFmww
B67: IDF dc
B68: IDF ww
B69: IDF ww 1
B70: IMA un
B71: IMA unp
B72: MH mm 1
B73: MH mm 2
B74: MS mw 2
B75: Sunshine Coast Natural Resource District
B76: BAFAun
B77: CDF mm
B78: CMA un
B79: CMA unp
B80: CWH dm
B81: CWH ds 1
B82: CWH mm 1
B83: CWH ms 1
B84: CWH vm 1
B85: CWH vm 2
B86: CWH xm 1
B87: CWH xm 2
B88: ESSFmw
B89: ESSFmwp
B90: ESSFxvp
B91: IMA un
B92: IMA unp
B93: MH mm 1
B94: MH mm 2
B95: MH mmp
B96: Campbell River Natural Resource District
B97: CDF mm
B98: CMA unp
B99: CWH dm
B100: CWH mm 1
B101: CWH mm 2
B102: CWH vh 1
B103: CWH vm 1
B104: CWH vm 2
B105: CWH xm 1
B106: CWH xm 2
B107: MH mm 1
B108: MH mm 2
B109: Haida Gwaii Natural Resource District
B110: CMA wh
B111: CWH vh 1
B112: CWH vh 2
B113: CWH vh 3
B114: CWH wh 1
B115: CWH wh 2
B116: MH wh
B117: MH whp
B118: North Island - Central Coast Natural Resource District
B119: BAFAun
B120: BAFAunp
B121: CMA un
B122: CMA unp
B123: CWH dm
B124: CWH ds 2
B125: CWH ms 2
B126: CWH vh 1
B127: CWH vh 2
B128: CWH vm 1
B129: CWH vm 2
B130: CWH ws 2
B131: CWH xm 2
B132: ESSFmc
B133: ESSFmcp
B134: ESSFmk
B135: ESSFmkp
B136: ESSFmw
B137: ESSFmwp
B138: ESSFxv 1
B139: ESSFxvp
B140: IDF dw
B141: IDF ww
B142: IMA unp
B143: MH mm 1
B144: MH mm 2
B145: MH mmp
B146: MH wh 1
B147: MS dc 2
B148: MS xv
B149: SBPSmc
B150: SBPSxc
B151: SBS mc 2
B152: South Island Natural Resource District
B153: CDF mm
B154: CMA unp
B155: CWH mm 1
B156: CWH mm 2
B157: CWH vh 1
B158: CWH vm 1
B159: CWH vm 2
B160: CWH xm 1
B161: CWH xm 2
B162: MH mm 1

Sheet Comments
A1: Write any additional comments or clarifications to the cost survey within this workbook tab
A3: Survey Reporting Period; January 1, to December 31, of the Reporting Year. Report each of 2017, 2018, 2019 and 2020 on separate worktabs within the workbook.
